[Event "106th British-ch 2019"]
[Site "Torquay"]
[Date "2019.08.04"]
[Round "9.20"]
[White "Krzyzanowski, Patryk"]
[Black "Zapolskis, Antanas"]
[Result "0-1"]
[ECO "A26"]
[WhiteElo "2114"]
[BlackElo "2290"]
[Annotator "ChessBase"]
[PlyCount "52"]
[EventDate "2019.07.27"]
[EventType "swiss"]
[EventCountry "GBR"]
[SourceTitle "playchess.com"]
[Source "ChessBase"]
[SourceQuality "1"]
[TimeControl "40/5400+30:1800+30"]

1. c4 {[%emt 0:00:00]} e5 {[%emt 0:00:00]} 2. Nc3 {[%emt 0:00:09]} Nc6 {[%emt 0:00:15]} 3. g3 {[%emt 0:00:37]} g6 {[%emt 0:00:38]} 4. Bg2 {[%emt 0:00:53]} Bg7 {[%emt 0:00:12]} 5. d3 {[%emt 0:00:50]} f5 {[%emt 0:02:05]} 6. Nf3 {[%emt 0:01:17]} Nf6 {[%emt 0:01:06]} 7. Bg5 {[%emt 0:00:53]} h6 {[%emt 0:00:35]} 8. Bxf6 {[%emt 0:01:03]} Qxf6 {[%emt 0:00:43]} 9. O-O {[%emt 0:00:51]} O-O {[%emt 0:05:29]} 10. Rb1 {[%emt 0:01:01]} Ne7 {[%emt 0:04:28]} 11. Nd2 {[%emt 0:01:54]} c6 {[%emt 0:01:46]} 12. c5 {[%emt 0:02:38]} d5 {[%emt 0:00:50]} 13. cxd6 {[%emt 0:00:41]} Qxd6 {[%emt 0:00:07]} 14. b4 {[%emt 0:15:30]} Be6 {[%emt 0:09:28]} 15. Qc2 {[%emt 0:06:46]} Nd5 {[%emt 0:02:39]} 16. Nc4 {[%emt 0:05:50]} Qe7 {[%emt 0:03:28]} 17. b5 {[%emt 0:07:00]} Nxc3 {[%emt 0:03:40]} 18. Qxc3 {[%emt 0:00:50]} e4 {[%emt 0:06:25]} 19. Qc1 {[%emt 0:08:51]} Rac8 {[%emt 0:01:37]} 20. b6 {[%emt 0:05:44]} exd3 {[%emt 0:03:46]} 21. bxa7 {[%emt 0:00:57]} d2 {[%emt 0:01:06]} 22. Qa3 {[%emt 0:03:24]} Qxa3 {[%emt 0:02:32]} 23. Nxa3 {[%emt 0:00:07]} Rf7 {[%emt 0:03:59]} 24. Rb4 {[%emt 0:10:56]} Ra8 {[%emt 0:02:57]} 25. Nc4 {[%emt 0:16:39]} Rxa7 {[%emt 0:00:15]} 26. a4 {[%emt 0:04:02]} Bf8 {[%emt 0:00:17]} 0-1

[Event "106th British-ch 2019"]
[Site "Torquay"]
[Date "2019.08.04"]
[Round "9.21"]
[White "Yoon, Jacob D"]
[Black "Merriman, John"]
[Result "1/2-1/2"]
[ECO "C03"]
[WhiteElo "1963"]
[BlackElo "2226"]
[Annotator "ChessBase"]
[PlyCount "74"]
[EventDate "2019.07.27"]
[EventType "swiss"]
[EventCountry "GBR"]
[SourceTitle "playchess.com"]
[Source "ChessBase"]
[SourceQuality "1"]
[TimeControl "40/5400+30:1800+30"]

1. e4 {[%emt 0:00:00]} e6 {[%emt 0:00:00]} 2. d4 {[%emt 0:00:00]} d5 {[%emt 0:00:00]} 3. Nd2 {[%emt 0:00:25]} Be7 {[%emt 0:00:15]} 4. e5 {[%emt 0:00:13]} c5 {[%emt 0:00:08]} 5. c3 {[%emt 0:00:04]} Nc6 {[%emt 0:00:29]} 6. Bd3 {[%emt 0:00:06]} Nh6 {[%emt 0:00:51]} 7. Ndf3 {[%emt 0:00:19]} Nf5 {[%emt 0:01:29]} 8. Ne2 {[%emt 0:00:16]} cxd4 {[%emt 0:01:05]} 9. cxd4 {[%emt 0:00:25]} Bb4+ {[%emt 0:05:15]} 10. Bd2 {[%emt 0:06:10]} Qb6 {[%emt 0:00:17]} 11. O-O {[%emt 0:00:08]} Bd7 {[%emt 0:04:13]} 12. Bxb4 {[%emt 0:04:21]} Qxb4 {[%emt 0:02:10]} 13. Bxf5 {[%emt 0:02:05]} exf5 {[%emt 0:02:28]} 14. Nf4 {[%emt 0:00:43]} Be6 {[%emt 0:11:40]} 15. a3 {[%emt 0:09:16]} Qe7 {[%emt 0:02:04]} 16. Nxe6 {[%emt 0:00:55]} fxe6 {[%emt 0:00:15]} 17. b4 {[%emt 0:00:32]} O-O {[%emt 0:02:27]} 18. Qd3 {[%emt 0:03:48]} g5 {[%emt 0:19:55]} 19. Nd2 {[%emt 0:00:44]} f4 {[%emt 0:00:46]} 20. f3 {[%emt 0:01:09]} Rac8 {[%emt 0:10:59]} 21. g4 {[%emt 0:07:36]} Kg7 {[%emt 0:00:48]} 22. Rac1 {[%emt 0:06:18]} Qd7 {[%emt 0:01:52]} 23. Nb3 {[%emt 0:00:35]} b6 {[%emt 0:00:14]} 24. Rc3 {[%emt 0:01:07]} Ne7 {[%emt 0:01:04]} 25. Rfc1 {[%emt 0:03:24]} Rxc3 {[%emt 0:03:56]} 26. Rxc3 {[%emt 0:00:13]} Rc8 {[%emt 0:00:25]} 27. Rxc8 {[%emt 0:00:13]} Qxc8 {[%emt 0:00:49]} 28. Kf2 {[%emt 0:00:47]} h5 {[%emt 0:06:44]} 29. h3 {[%emt 0:00:52]} Qh8 {[%emt 0:00:50]} 30. Ke1 {[%emt 0:04:41]} hxg4 {[%emt 0:02:48]} 31. hxg4 {[%emt 0:00:06]} Qh2 {[%emt 0:02:57]} 32. Nd2 {[%emt 0:01:54]} Qg1+ {[%emt 0:03:43]} 33. Ke2 {[%emt 0:03:22]} Ng6 {[%emt 0:03:20]} 34. Qc3 {[%emt 0:00:35]} Kf7 {[%emt 0:05:06]} 35. Qc7+ {[%emt 0:00:39]} Ne7 {[%emt 0:00:04]} 36. Qc3 {[%emt 0:00:07]} Qg2+ {[%emt 0:02:34]} 37. Kd1 {[%emt 0:00:52]} Qh1+ {[%emt 0:00:50]} 1/2-1/2

[Event "106th British-ch 2019"]
[Site "Torquay"]
[Date "2019.08.04"]
[Round "9.22"]
[White "Longson, Sarah N"]
[Black "Holland, Chris Kd"]
[Result "0-1"]
[ECO "C05"]
[WhiteElo "2095"]
[BlackElo "2143"]
[Annotator "ChessBase"]
[PlyCount "58"]
[EventDate "2019.07.27"]
[EventType "swiss"]
[EventCountry "GBR"]
[SourceTitle "playchess.com"]
[Source "ChessBase"]
[SourceQuality "1"]
[TimeControl "40/5400+30:1800+30"]

1. e4 {[%emt 0:00:00]} e6 {[%emt 0:00:44]} 2. d4 {[%emt 0:00:00]} d5 {[%emt 0:00:04]} 3. Nd2 {[%emt 0:00:00]} Nf6 {[%emt 0:00:06]} 4. Bd3 {[%emt 0:00:00]} c5 {[%emt 0:01:10]} 5. c3 {[%emt 0:00:00]} Nc6 {[%emt 0:00:37]} 6. Ngf3 {[%emt 0:00:12]} cxd4 {[%emt 0:01:03]} 7. cxd4 {[%emt 0:00:11]} dxe4 {[%emt 0:00:29]} 8. Nxe4 {[%emt 0:00:13]} Bb4+ {[%emt 0:05:51]} 9. Nc3 {[%emt 0:00:10]} O-O {[%emt 0:00:48]} 10. O-O {[%emt 0:00:29]} Bd7 {[%emt 0:01:51]} 11. a3 {[%emt 0:01:06]} Be7 {[%emt 0:00:10]} 12. Bc2 {[%emt 0:00:59]} Qa5 {[%emt 0:01:39]} 13. Qd3 {[%emt 0:04:37]} Qh5 {[%emt 0:02:06]} 14. Ne2 {[%emt 0:03:27]} Nd5 {[%emt 0:02:30]} 15. Ng3 {[%emt 0:01:44]} Qg6 {[%emt 0:04:28]} 16. Qe2 {[%emt 0:06:42]} f5 {[%emt 0:00:16]} 17. Bb3 {[%emt 0:03:31]} Rad8 {[%emt 0:02:28]} 18. Bxd5 {[%emt 0:14:45]} exd5 {[%emt 0:00:03]} 19. Qb5 {[%emt 0:02:56]} f4 {[%emt 0:11:18]} 20. Ne2 {[%emt 0:19:13]} Nxd4 {[%emt 0:00:28]} 21. Qxd5+ {[%emt 0:10:22]} Be6 {[%emt 0:00:06]} 22. Qxb7 {[%emt 0:00:23]} Bd5 {[%emt 0:17:21]} 23. Qxe7 {[%emt 0:00:25]} Nxf3+ {[%emt 0:00:06]} 24. Kh1 {[%emt 0:00:18]} Nh4 {[%emt 0:02:06]} 25. Ng3 {[%emt 0:05:08]} Bxg2+ {[%emt 0:00:12]} 26. Kg1 {[%emt 0:00:03]} Bxf1 {[%emt 0:01:20]} 27. Bxf4 {[%emt 0:03:25]} Nf5 {[%emt 0:00:36]} 28. Qxa7 {[%emt 0:01:07]} Bc4 {[%emt 0:01:29]} 29. Rc1 {[%emt 0:03:45]} Nh4 {[%emt 0:01:10]} 0-1

[Event "106th British-ch 2019"]
[Site "Torquay"]
[Date "2019.08.04"]
[Round "9.24"]
[White "Kahn, Tito"]
[Black "Player, Edmund C"]
[Result "0-1"]
[ECO "D00"]
[WhiteElo "1921"]
[BlackElo "2202"]
[Annotator "ChessBase"]
[PlyCount "76"]
[EventDate "2019.07.27"]
[EventType "swiss"]
[EventCountry "GBR"]
[SourceTitle "playchess.com"]
[Source "ChessBase"]
[SourceQuality "1"]
[TimeControl "40/5400+30:1800+30"]

1. d4 {[%emt 0:01:51]} Nf6 {[%emt 0:00:00]} 2. Bf4 {[%emt 0:00:08]} d5 {[%emt 0:00:04]} 3. e3 {[%emt 0:00:20]} c5 {[%emt 0:00:24]} 4. Nd2 {[%emt 0:00:33]} Nc6 {[%emt 0:00:25]} 5. c3 {[%emt 0:00:06]} Qb6 {[%emt 0:01:23]} 6. Qb3 {[%emt 0:00:18]} c4 {[%emt 0:00:16]} 7. Qc2 {[%emt 0:00:04]} Bg4 {[%emt 0:01:36]} 8. Ngf3 {[%emt 0:02:34]} e6 {[%emt 0:01:21]} 9. e4 {[%emt 0:02:32]} Be7 {[%emt 0:01:02]} 10. Ne5 {[%emt 0:09:10]} Nxe5 {[%emt 0:07:30]} 11. Bxe5 {[%emt 0:00:14]} O-O {[%emt 0:00:42]} 12. f3 {[%emt 0:06:31]} Bh5 {[%emt 0:00:48]} 13. O-O-O {[%emt 0:06:27]} Nd7 {[%emt 0:12:39]} 14. g4 {[%emt 0:04:54]} Bg6 {[%emt 0:00:54]} 15. Bg3 {[%emt 0:06:49]} Qc6 {[%emt 0:05:22]} 16. h4 {[%emt 0:00:59]} h6 {[%emt 0:00:46]} 17. Bg2 {[%emt 0:03:06]} b5 {[%emt 0:19:28]} 18. h5 {[%emt 0:00:20]} Bh7 {[%emt 0:00:18]} 19. Rde1 {[%emt 0:06:16]} b4 {[%emt 0:04:08]} 20. f4 {[%emt 0:04:49]} bxc3 {[%emt 0:05:11]} 21. bxc3 {[%emt 0:09:52]} Ba3+ {[%emt 0:01:12]} 22. Kd1 {[%emt 0:02:13]} Rab8 {[%emt 0:00:53]} 23. f5 {[%emt 0:03:13]} Rb2 {[%emt 0:01:23]} 24. Qc1 {[%emt 0:01:02]} Rxa2 {[%emt 0:05:14]} 25. Qb1 {[%emt 0:00:22]} Rb2 {[%emt 0:00:42]} 26. Qc1 {[%emt 0:03:52]} Qa4+ {[%emt 0:02:05]} 27. Ke2 {[%emt 0:00:01]} Rc2 {[%emt 0:02:06]} 28. Qa1 {[%emt 0:01:57]} Qb3 {[%emt 0:15:49]} 29. Bf4 {[%emt 0:07:58]} Bb2 {[%emt 0:01:32]} 30. Qb1 {[%emt 0:01:22]} Bxc3 {[%emt 0:03:47]} 31. Qxb3 {[%emt 0:02:08]} cxb3 {[%emt 0:00:04]} 32. Rb1 {[%emt 0:03:54]} Bxd2 {[%emt 0:01:19]} 33. Bxd2 {[%emt 0:00:04]} b2 {[%emt 0:00:21]} 34. Kd1 {[%emt 0:01:02]} Rfc8 {[%emt 0:00:32]} 35. exd5 {[%emt 0:00:34]} exf5 {[%emt 0:00:20]} 36. gxf5 {[%emt 0:01:35]} Bxf5 {[%emt 0:00:38]} 37. Rf1 {[%emt 0:00:54]} Bd3 {[%emt 0:00:51]} 38. Rf3 {[%emt 0:01:11]} Rxd2+ {[%emt 0:00:23]} 0-1

[Event "106th British-ch 2019"]
[Site "Torquay"]
[Date "2019.08.04"]
[Round "9.25"]
[White "Donaldson, Thomas"]
[Black "Jaufarally, Nadia"]
[Result "1-0"]
[ECO "E97"]
[WhiteElo "2065"]
[BlackElo "1944"]
[Annotator "NA"]
[PlyCount "93"]
[EventDate "2019.07.27"]
[EventType "swiss"]
[EventCountry "GBR"]
[SourceTitle "playchess.com"]
[Source "ChessBase"]
[SourceQuality "1"]
[TimeControl "40/5400+30:1800+30"]

1. d4 {[%emt 0:00:00]} Nf6 {[%emt 0:00:00]} 2. c4 {[%emt 0:00:00]} g6 {[%emt 0:00:00]} 3. Nc3 {[%emt 0:00:00]} Bg7 {[%emt 0:00:08]} 4. e4 {[%emt 0:00:00]} d6 {[%emt 0:00:06]} 5. Nf3 {[%emt 0:00:09]} O-O {[%emt 0:00:08]} 6. Be2 {[%emt 0:00:07]} e5 {[%emt 0:00:33]} 7. O-O {[%emt 0:00:09]} Nc6 {[%emt 0:00:35]} 8. d5 {[%emt 0:00:10]} Ne7 {[%emt 0:00:06]} 9. b4 {[%emt 0:00:07]} a5 {[%emt 0:02:54]} 10. bxa5 {[%emt 0:00:37]} Rxa5 {[%emt 0:00:39]} 11. a4 {[%emt 0:00:15]} Nd7 {[%emt 0:03:42]} 12. Ba3 {[%emt 0:02:26]} Nc5 {[%emt 0:14:36]} 13. Bb4 {[%emt 0:00:29]} Ra8 {[%emt 0:00:29]} 14. Bxc5 {[%emt 0:06:58]} dxc5 {[%emt 0:00:08]} 15. Nd2 {[%emt 0:00:29]} f5 {[%emt 0:08:13]} 16. f3 {[%emt 0:00:18]} Bh6 {[%emt 0:00:37]} 17. Nb3 {[%emt 0:01:40]} Be3+ {[%emt 0:04:25]} 18. Kh1 {[%emt 0:00:09]} f4 {[%emt 0:02:43]} 19. Qc2 {[%emt 0:13:21]} g5 {[%emt 0:12:46]} 20. Nd1 {[%emt 0:00:10]} Bd4 {[%emt 0:00:45]} 21. Nxd4 {[%emt 0:00:10]} exd4 {[%emt 0:01:15]} 22. e5 {[%emt 0:02:21]} Qe8 {[%emt 0:02:47]} 23. e6 {[%emt 0:02:36]} Nf5 {[%emt 0:05:53]} 24. Bd3 {[%emt 0:07:48]} Ng3+ {[%emt 0:04:01]} 25. Kg1 {[%emt 0:01:46]} Nxf1 {[%emt 0:01:27]} 26. Kxf1 {[%emt 0:01:57]} Bxe6 {[%emt 0:15:44]} 27. Bxh7+ {[%emt 0:01:04]} Kg7 {[%emt 0:04:03]} 28. dxe6 {[%emt 0:00:09]} Qxe6 {[%emt 0:01:50]} 29. h3 {[%emt 0:01:45]} Rfe8 {[%emt 0:05:18]} 30. Nf2 {[%emt 0:00:23]} Rad8 {[%emt 0:02:55]} 31. Bd3 {[%emt 0:05:32]} Qa6 {[%emt 0:01:44]} 32. Ne4 {[%emt 0:01:08]} Re5 {[%emt 0:00:07]} 33. Qb3 {[%emt 0:01:29]} Ra8 {[%emt 0:02:08]} 34. a5 {[%emt 0:07:33]} b6 {[%emt 0:01:02]} 35. Qb5 {[%emt 0:00:07]} Qxb5 {[%emt 0:00:55]} 36. cxb5 {[%emt 0:00:09]} bxa5 {[%emt 0:01:52]} 37. Ra4 {[%emt 0:00:30]} c6 {[%emt 0:01:13]} 38. bxc6 {[%emt 0:01:03]} Rc8 {[%emt 0:00:10]} 39. Bb5 {[%emt 0:07:59]} c4 {[%emt 0:00:26]} 40. Nd6 {[%emt 0:04:14]} Rc7 {[%emt 0:00:58]} 41. Rxc4 {[%emt 0:30:36]} Kf8 {[%emt 0:17:27]} 42. Rxd4 {[%emt 0:00:00]} Rxb5 {[%emt 0:00:22]} 43. Nxb5 {[%emt 0:00:00]} Rxc6 {[%emt 0:00:04]} 44. Ra4 {[%emt 0:00:00]} Rc1+ {[%emt 0:00:12]} 45. Kf2 {[%emt 0:00:00]} Kg7 {[%emt 0:02:01]} 46. Rxa5 {[%emt 0:00:00]} Kh6 {[%emt 0:00:06]} 47. Ra6+ {[%emt 0:00:00]} 1-0